{"text_format":"1","workbook":"xlsx","n_sheets":2,"sheets":["Proposal","Languages"],"not_rendered":{"charts":0,"images":1,"macros":1,"external_links":0,"defined_names":7,"comments":1,"pivot_tables":0},"unopened":[],"bounds":{"document_bytes":16777216,"sheet_cells":100000,"rows_first":2000,"rows_last":500,"rows_between":2000,"halvings":0,"cell_chars":16384,"cell_head_chars":4096},"cells_cut":0,"cells_raw":0,"read":"whole","date_system":"1900"}

{"sheet":"Proposal","index":0,"n_rows":35,"n_cols":10,"rows_kept":35,"cut":false,"hidden":false,"merged":[[0,3,0,6],[9,3,9,4],[1,8,2,10],[5,0,5,6],[1,2,2,6],[34,2,34,6],[23,0,23,6],[17,0,17,6],[18,0,18,6],[19,0,19,6],[22,0,22,6],[24,0,24,6],[32,0,32,6],[27,0,27,6],[28,0,28,6],[29,0,29,6],[30,0,30,6],[11,2,11,6],[13,2,13,4],[7,0,7,6],[15,0,15,4],[16,0,16,6]]}
[null,null,null,{"$f":"IF(ChoixLangues=Languages!$A$1,Languages!A37,IF(ChoixLangues=Languages!$B$1,Languages!B37,IF(ChoixLangues=Languages!$C$1,Languages!C37,Languages!D37)))","v":"Version N° 2020.000 du 15 sept 19"}]
[null,null,"Signalement d'erreur",null,null,null,null,null,"Auswahl der Sprache, \nChoix de la langue"]
[]
[null,null,null,null,null,null,null,null,null,"Français"]
[{"$f":"IF(ChoixLangues=Languages!$A$1,Languages!A5,IF(ChoixLangues=Languages!$B$1,Languages!B5,IF(ChoixLangues=Languages!$C$1,Languages!C5,Languages!D5)))","v":"Nom de la compétition :"}]
[]
[{"$f":"IF(ChoixLangues=Languages!$A$1,Languages!A6,IF(ChoixLangues=Languages!$B$1,Languages!B6,IF(ChoixLangues=Languages!$C$1,Languages!C6,Languages!D6)))","v":"Lieu de la compétition :"}]
[]
[{"$f":"IF(ChoixLangues=Languages!$A$1,Languages!A7,IF(ChoixLangues=Languages!$B$1,Languages!B7,IF(ChoixLangues=Languages!$C$1,Languages!C7,Languages!D7)))","v":"Date(s) de la compétition :"}]
[{"$f":"IF(ChoixLangues=Languages!$A$1,Languages!A8,IF(ChoixLangues=Languages!$B$1,Languages!B8,IF(ChoixLangues=Languages!$C$1,Languages!C8,Languages!D8)))","v":"Du"},null,{"$f":"IF(ChoixLangues=Languages!$A$1,Languages!A9,IF(ChoixLangues=Languages!$B$1,Languages!B9,IF(ChoixLangues=Languages!$C$1,Languages!C9,Languages!D9)))","v":"au"}]
[]
[{"$f":"IF(ChoixLangues=Languages!$A$1,Languages!A10,IF(ChoixLangues=Languages!$B$1,Languages!B10,IF(ChoixLangues=Languages!$C$1,Languages!C10,Languages!D10)))","v":"Fichier utilisé ?"}]
[]
[{"$f":"IF(ChoixLangues=Languages!$A$1,Languages!A11,IF(ChoixLangues=Languages!$B$1,Languages!B11,IF(ChoixLangues=Languages!$C$1,Languages!C11,Languages!D11)))","v":"Version ?"},null,"???"]
[]
[{"$f":"IF(ChoixLangues=Languages!$A$1,Languages!A28,IF(ChoixLangues=Languages!$B$1,Languages!B28,IF(ChoixLangues=Languages!$C$1,Languages!C28,Languages!D28)))","v":"Problème(s) rencontré(s) avec le fichier"}]
[{"$f":"IF(ChoixLangues=Languages!$A$1,Languages!A29,IF(ChoixLangues=Languages!$B$1,Languages!B29,IF(ChoixLangues=Languages!$C$1,Languages!C29,Languages!D29)))","v":"(merci d'effectuer un descriptif et de joindre des copies d'écran ou des impressions permettant de comprendre le(s) problème(s))"}]
[]
[]
[]
[]
[]
[]
[]
[]
[]
[]
[]
[]
[]
[]
[]
[{"$f":"IF(ChoixLangues=Languages!$A$1,Languages!A30,IF(ChoixLangues=Languages!$B$1,Languages!B30,IF(ChoixLangues=Languages!$C$1,Languages!C30,Languages!D30)))","v":"Ne pas oublier de joindre le fichier contenant le problème afin de pouvoir essayer de le résoudre"}]
[]
[{"$f":"IF(ChoixLangues=Languages!$A$1,Languages!A32,IF(ChoixLangues=Languages!$B$1,Languages!B32,IF(ChoixLangues=Languages!$C$1,Languages!C32,Languages!D32)))","v":"Nom de l'utilisateur du fichier"}]

{"sheet":"Languages","index":1,"n_rows":203,"n_cols":15,"rows_kept":203,"cut":false,"hidden":true,"merged":[]}
["Deutsch","Français","??","???",null,null,"Titre"]
["Bug report","Signalement d'erreur",null,null,null,null,{"$f":"IF(ChoixLangues=Languages!$A$1,Languages!A2,IF(ChoixLangues=Languages!$B$1,Languages!B2,IF(ChoixLangues=Languages!$C$1,Languages!C2,Languages!D2)))","v":"Signalement d'erreur"},null,null,null,null,null,{"$f":"IF(ChoixLangues=A1,A33,IF(ChoixLangues=B1,B33,IF(ChoixLangues=C1,C33,D33)))","v":0},"RSR","RVCR_CheckList.xlsx"]
["Antrag auf Ergänzung","Demande d'ajout",null,null,null,null,{"$f":"IF(ChoixLangues=Languages!$A$1,Languages!A3,IF(ChoixLangues=Languages!$B$1,Languages!B3,IF(ChoixLangues=Languages!$C$1,Languages!C3,Languages!D3)))","v":"Demande d'ajout"},null,null,null,null,null,{"$f":"IF(ChoixLangues=$A$1,A34,IF(ChoixLangues=$B$1,B34,IF(ChoixLangues=$C$1,C34,D34)))","v":0},"RZW","RVCR_ClassementFinal_Cup.xlsx"]
[null,null,null,null,null,null,null,null,null,null,null,null,null,"RZO","RVCR_Repart_Cat.xlsm"]
["Name der Wettkampfveranstaltung","Nom de la compétition :",null,null,null,null,"Langue système",{"$f":"LangueSysteme()","v":"Français"},null,null,null,null,null,"Artistic Swimming","SAAS_Bugreport.xlsx"]
["Ort der Wettkampfveranstaltung","Lieu de la compétition :",null,null,null,null,null,null,null,null,null,null,null,"Organisateur","SAAS_Entries.xlsm"]
["Datum der Wettkampfveranstaltung","Date(s) de la compétition :",null,null,null,null,null,null,null,null,null,null,null,{"$f":"IF(ChoixLangues=$A$1,A35,IF(ChoixLangues=$B$1,B35,IF(ChoixLangues=$C$1,C35,D35)))","v":0},"SAAS_Judges_Eval_Free.xlsm"]
["Von","Du",null,null,null,null,null,null,null,null,null,null,null,null,"SAAS_JudgesRepart.xlsm"]
["bis","au",null,null,null,null,null,null,null,null,null,null,null,null,"SAAS_Results.xlsm"]
["Benutzte Datei ?","Fichier utilisé ?",null,null,null,null,null,null,null,null,null,null,null,null,"SAAS_Scoresheets.xlsm"]
["Version ?","Version ?",null,null,null,null,null,null,null,null,null,null,null,null,"SAAS_StartFees.xlsm"]
[null,null,null,null,null,null,null,null,null,null,null,null,null,null,"SAAS_Tests.xlsm"]
[]
[]
[]
[]
[]
[]
[]
[]
[]
[]
[]
[]
[]
[]
[]
["Getroffenes Problem mit der Datei","Problème(s) rencontré(s) avec le fichier"]
["Bitte eine Beschreibung ausführen und Bildschirmkopien oder Eindrücken beilegen, die erlauben, das Problem zu verstehen","(merci d'effectuer un descriptif et de joindre des copies d'écran ou des impressions permettant de comprendre le(s) problème(s))"]
["Nicht vergessen die Datei im Anhang zu senden, um die Problem probieren zu lösen","Ne pas oublier de joindre le fichier contenant le problème afin de pouvoir essayer de le résoudre"]
[]
["Name dem Benutzer der Datei","Nom de l'utilisateur du fichier"]
[]
[]
[]
[]
[{"$f":"\"Version N° \" & TEXT(A201,\"##00.000\") & \" von \" & C203","v":"Version N° 2020.000 von 15 sept 19"},{"$f":"\"Version N° \" & TEXT(A201,\"##00.000\") & \" du \" & C203","v":"Version N° 2020.000 du 15 sept 19"}]
["von","du"]
[]
[]
[]
[]
[]
[]
[]
[]
[]
[]
[]
[]
[]
[]
[]
[]
[]
[]
[]
[]
[]
[]
[]
[]
[]
[]
[]
[]
[]
[]
[]
[]
[]
[]
[]
[]
[]
[]
[]
[]
[]
[]
[]
[]
[]
[]
[]
[]
[]
[]
[]
[]
[]
[]
[]
[]
[]
[]
[]
[]
[]
["Version","Modification","Date"]
[2017,"Mise à disposition de la première version","2016-10-08"]
[]
[2018,"Modification du Logo","2017-09-29"]
[null,"Correction des traductions"]
[]
[2018.001,"Correction d'un bug de traduction","2018-11-10"]
[]
[2019,"Modification du Logo","2019-09-13"]
[]
[2020,"Mise à jour de la liste des fichiers","2019-09-15"]
[]
[]
[]
[]
[]
[]
[]
[]
[]
[]
[]
[]
[]
[]
[]
[]
[]
[]
[]
[]
[]
[]
[]
[]
[]
[]
[]
[]
[]
[]
[]
[]
[]
[]
[]
[]
[]
[]
[]
[]
[]
[]
[]
[]
[]
[]
[]
[]
[]
[]
[]
[]
[]
[]
[]
[]
[]
[]
[]
[]
[]
[]
[]
[]
[]
[]
[]
[]
[]
[]
[]
[]
[]
[]
[]
[]
[]
[]
[]
[]
[]
[]
[]
[]
[]
[]
[]
[]
[]
["-","-","-"]
[{"$f":"MAX(A101:A199)","v":2020},null,{"$f":"MAX(C101:C199)","v":"2019-09-15"}]
[]
[null,null,{"$f":"IF(H5=\"Français\",TEXT(C201,\"j MMM aa\"),IF(H5=\"Allemand\",TEXT(C201,\"t. MMM jj\"),IF(H5=\"Anglais\",TEXT(C201,\"d MMM yy\"),IF(H5=\"Italien\",TEXT(C201,\"g MMM aa\"),\"\"))))","v":"15 sept 19"}]